[Event "4NCL Div 2 2024-25"]
[Site "England"]
[Date "2025.02.15"]
[Round "5.19"]
[White "Jackson, Edward"]
[Black "Arnott, Jonathan W"]
[Result "1-0"]
[Annotator "TA"]
[ECO "C03"]
[WhiteElo "2132"]
[BlackElo "2087"]
[PlyCount "31"]
[EventDate "2024.11.23"]
[EventType "team-tourn"]
[EventCountry "ENG"]
[SourceTitle "playchess.com"]
[Source "ChessBase"]
[SourceQuality "1"]
[TimeControl "40/6000+30:3000+30"]

{[%evp 9,31,27,24,38,35,-23,49,50,52,50,96,96,168,150,129,108,165,187,210,125,186,186,453,453]} 1. e4 {[%emt 0:11:45]} e6 {[%emt 0:10:03]} 2. d4 {[%emt 0:00:07]} d5 {[%emt 0:00:03]} 3. Nd2 {[%emt 0:00:42]} a5 {[%emt 0:00:49]} 4. Ngf3 {[%emt 0:02:04]} Nf6 {[%emt 0:00:09]} 5. Bd3 {[%emt 0:00:25]} c5 {[%emt 0:00:48]} 6. exd5 {[%emt 0:02:24] C03: French Tarrasch: Unusual Black 3rd moves.} exd5 {[%emt 0:02:30]} 7. Qe2+ $146 {[%emt 0:08:01]} (7. c3 $14) ({Predecessor:} 7. dxc5 Bxc5 8. Nb3 Qe7+ 9. Qe2 Qxe2+ 10. Kxe2 Bd6 11. Nbd4 Nc6 12. Nb5 Bb8 13. c3 {½-½ Mostertman,M (2244)-Stijve,T (2396) Groningen op 60th 2024 (4)}) 7... Qe7 {[%emt 0:01:23]} ({Black should try} 7... Be7 $11) 8. Bb5+ $14 {[%emt 0:00:17] White is slightly better.} Bd7 {[%emt 0:02:45]} 9. Ne5 {[%emt 0:03:35]} Nc6 {[%emt 0:16:21]} (9... a4 $14) 10. Ndf3 $16 {[%emt 0:13:01] White is more active.} Nxd4 {[%emt 0:20:23]} (10... Nxe5 $16 11. Nxe5 O-O-O) 11. Nxd4 $18 {[%emt 0:00:36]} cxd4 {[%emt 0:00:05]} 12. O-O {[%emt 0:03:11]} d3 {[%emt 0:08:20]} (12... O-O-O $16) 13. Bxd3 {[%emt 0:11:00] A sharp opening} (13. Qxd3 $2 {too greedy.} Qxe5 14. Bxd7+ Kxd7 $19 (14... Nxd7 $2 15. Bd2 $19)) 13... O-O-O 14. Bd2 {[%emt 0:04:10]} (14. Bf4 $18) 14... Re8 {[%emt 0:08:02]} (14... Ne4 $16) 15. Rfe1 {[%emt 0:01:37][%cal Oe2f3] and Qf3! would now be decisive} Ne4 $2 {[%emt 0:07:09] [#]} (15... Qc5 {was necessary.} 16. Nxd7 Rxe2 17. Nxc5 Rxe1+ (17... Rxd2 18. Bf5+ Kb8 19. Nb3 $18) 18. Rxe1 Bxc5 19. Bxa5 Kb8) 16. Nxd7 {[%emt 0:01:28] Weighted Error Value: White=0.19 (very precise) /Black=0.71  Mistake:       	White=2     	Black=6      OK:         	White=4     	---        Best:        	White=3     	---} 1-0

[Event "4NCL Div 2 2024-25"]
[Site "England"]
[Date "2025.02.15"]
[Round "5.20"]
[White "Gayson, Peter M"]
[Black "McLean, Robert"]
[Result "0-1"]
[Annotator "TA"]
[ECO "B12"]
[WhiteElo "2087"]
[BlackElo "2011"]
[PlyCount "94"]
[EventDate "2024.11.23"]
[EventType "team-tourn"]
[EventCountry "ENG"]
[SourceTitle "playchess.com"]
[Source "ChessBase"]
[SourceQuality "1"]
[TimeControl "40/6000+30:3000+30"]

{[%evp 14,94,0,0,2,5,0,2,4,6,45,31,31,33,33,14,58,57,70,64,66,0,16,10,1,0,0,0,133,-34,18,17,16,15,151,21,92,101,93,-93,0,0,0,0,0,-26,9,-34,-25,-79,-47,-88,-50,-110,-110,-193,-110,-200,-191,-172,-133,-186,-108,-325,-292,-543,-554,-481,-486,-1887,-1182,-1883,-1672,-2968,-3875,-3189,-2866,-4129,-4086,-6717,-5677,-29987,-29988]} 1. e4 {[%emt 0:10:04]} c6 {[%emt 0:10:08]} 2. d4 {[%emt 0:00:11]} d5 {[%emt 0:00:06]} 3. e5 {[%emt 0:00:11]} Bf5 {[%emt 0:00:26]} 4. Nf3 {[%emt 0:00:10]} e6 {[%emt 0:00:04]} 5. Be2 {[%emt 0:00:25]} c5 {[%emt 0:00:34]} 6. O-O {[%emt 0:00:22]} Nc6 {[%emt 0:00:05]} 7. Be3 {[%emt 0:00:19]} cxd4 $1 {[%emt 0:01:13] 7...cxd4 scores better than 7...Qb6.} 8. Nxd4 {[%emt 0:00:22]} Nxd4 {[%emt 0:00:20] B12: Caro-Kann: Advance Variation.} 9. Qxd4 {[%emt 0:02:25]} Ne7 $1 {[%emt 0:01:42][%cal Oe7c6]} 10. Bb5+ {[%emt 0:01:43]} Nc6 {[%emt 0:00:07][%cal Oa7a6] The position is equal.} 11. c4 {[%emt 0:04:00]} a6 {[%emt 0:11:54]} 12. Bxc6+ {[%emt 0:09:54]} bxc6 {[%emt 0:00:04]} 13. cxd5 {[%emt 0:00:24]} cxd5 {[%emt 0:03:49]} 14. Nc3 {[%emt 0:03:16]} Rb8 $146 {[%emt 0:25:21][%cal Of8e7]} ({Predecessor:} 14... Be7 15. g4 Bg6 16. f4 f5 17. exf6 Bxf6 18. Qa4+ Qd7 19. Qxd7+ Kxd7 20. f5 Bf7 {½-½ Mushini,A (2265)-Bryakin,M (2437) Pozarevac Rudar 6th 2022 (6)}) 15. Qa4+ {[%emt 0:09:55]} Qd7 {[%emt 0:00:09]} 16. Qxa6 {[%emt 0:00:26]} Be7 {[%emt 0:03:11][%cal Oe8g8]} 17. Na4 {[%emt 0:15:30]} (17. Ne2 $1 $14) 17... O-O $11 {[%emt 0:06:22]} 18. Nb6 {[%emt 0:01:46]} Qd8 {[%emt 0:05:47]} 19. Bd4 {[%emt 0:09:16]} f6 $1 {[%emt 0:00:13]} 20. f4 {[%emt 0:04:42]} g5 {[%emt 0:03:12] [#]} (20... Be4 $11) 21. Qa7 $2 {[%emt 0:06:37]} (21. a4 $1 $16) 21... gxf4 {[%emt 0:04:28]} (21... Rf7 $15 22. Nd7 (22. exf6 $2 Bc5 $19) 22... Rb4) 22. Nd7 $1 {[%emt 0:17:10]} Ra8 {[%emt 0:01:28]} 23. Qb7 {[%emt 0:00:24]} (23. Nxf6+ $2 Bxf6 24. Qb7 Bg5 $19) 23... Rf7 {[%emt 0:03:12]} (23... fxe5 $1 $11 24. Nxe5 (24. Bxe5 Rf7 $16) 24... Bf6) 24. Qb5 (24. Nxf6+ $2 Bxf6 25. Qb3 Bg5 $19) (24. exf6 $2 Bd6 25. Qc6 Rxd7 $19 (25... Qxd7 26. Qxa8+ Rf8 27. Qa5 $16)) (24. Rxf4 $16 {Black must now prevent a4.} Ra4 25. Bb6 (25. Nxf6+ $2 Bxf6 26. Qb3 Rxd4 $19) (25. exf6 $2 Bd6 $19)) 24... fxe5 {[%emt 0:10:36]} (24... Qe8 $1 $11 {remains equal.} 25. a4 (25. Rxf4 fxe5 26. Bxe5 Qxd7 $19) (25. Nxf6+ Bxf6 26. Qxe8+ Rxe8 $15) (25. exf6 $2 Bd6 $19) 25... Be4 (25... fxe5 26. Nxe5 Rf8 27. Qxe8 $18)) 25. Nxe5 $16 {[%emt 0:01:34]} Bf6 {[%emt 0:00:33]} 26. Nc6 $2 {[%emt 0:06:48]} (26. Nxf7 $2 Bxd4+ 27. Kh1 Kxf7 28. Rxf4 Rb8 $19) (26. Rxf4 $16 {and life is bright.} Rg7 27. Rf2) 26... Bxd4+ {[%emt 0:02:34]} (26... Qc7 $17 27. Bxf6 Rxf6) 27. Nxd4 $11 {[%emt 0:00:09]} Qd6 {[%emt 0:03:45]} 28. Nxf5 {[%emt 0:00:57]} Rxf5 {[%emt 0:00:09]} 29. Qe2 {[%emt 0:03:30][%cal Ob2b4]} Raf8 {[%emt 0:00:58]} 30. Rac1 {[%emt 0:00:29][%cal Ob2b4]} e5 {[%emt 0:00:59]} 31. Rcd1 {[%emt 0:00:23]} (31. a4 $11) 31... Qc5+ {[%emt 0:04:48]} (31... e4 $6 32. Qxe4 dxe4 33. Rxd6 $11) 32. Kh1 {[%emt 0:00:10][%cal Ob2b4]} e4 {[%emt 0:00:59]} 33. Rc1 {[%emt 0:00:21]} ({Better is} 33. a4 $15) 33... Qd6 $36 {[%emt 0:01:14][%mdl 2048] Black has strong initiative.} 34. Qg4+ {[%emt 0:01:09] [#]} (34. b3 $17) 34... Qg6 {[%emt 0:00:52]} (34... Kh8 $1 $19 {Threatens to win with ...d4.} 35. a4 e3) 35. Qxg6+ {[%emt 0:00:56]} (35. Qe2 $17) 35... hxg6 {[%emt 0:00:04][%mdl 4096] Endgame KRR-KRR} 36. Rfd1 {[%emt 0:01:07]} Ra8 {[%emt 0:02:21]} 37. a3 {[%emt 0:00:25]} (37. Ra1 $17) 37... Ra4 {[%emt 0:00:35]} (37... Kf7 $19 38. Kg1 e3) 38. Rc5 $2 {[%emt 0:01:26] This costs White the game.} (38. Kg1 $17) 38... d4 $19 {[%emt 0:00:24]} 39. Rxf5 {[%emt 0:00:22]} (39. Rc8+ {was necessary.} Kf7 40. g3) 39... gxf5 {[%emt 0:00:04] KR-KR} 40. Kg1 {[%emt 0:00:07]} d3 {[%emt 0:00:00]} 41. g3 {[%emt 0:22:41]} (41. Kf1 $142) 41... f3 {[%emt 0:23:24]} 42. Kf2 {[%emt 0:00:19]} Rc4 {[%emt 0:00:06]} 43. b4 {[%emt 0:02:54]} Rc2+ {[%emt 0:00:06]} 44. Ke3 {[%emt 0:00:33]} Re2+ {[%emt 0:00:30]} 45. Kd4 {[%emt 0:01:00]} f2 {[%emt 0:00:14]} 46. Rf1 {[%emt 0:01:07]} d2 {[%emt 0:00:25] ( -> ...Re1)} 47. b5 {[%emt 0:00:17]} Re1 {[%emt 0:00:12] Weighted Error Value: White=1.26/Black=0.40  Loses game:     	White=1     	---        Mistake:       	White=11    	Black=7      Inaccurate:     	White=4     	Black=5      OK:         	White=11    	Black=4      Best:        	White=1     	Black=8      Strong:       	White=1     	Black=2} 0-1

[Event "4NCL Div 2 2024-25"]
[Site "England"]
[Date "2025.02.15"]
[Round "5.21"]
[White "Rawlinson, Aidan M"]
[Black "Rich, Aaron"]
[Result "1/2-1/2"]
[Annotator "TA"]
[ECO "B00"]
[WhiteElo "2076"]
[BlackElo "1919"]
[PlyCount "95"]
[EventDate "2024.11.23"]
[EventType "team-tourn"]
[EventCountry "ENG"]
[SourceTitle "playchess.com"]
[Source "ChessBase"]
[SourceQuality "1"]
[TimeControl "40/6000+30:3000+30"]

{[%evp 9,95,37,60,58,61,50,42,12,11,0,25,12,83,79,102,97,94,47,136,142,127,117,109,117,109,110,112,130,283,243,236,235,235,91,165,176,266,252,328,336,251,95,136,79,75,75,79,68,60,24,27,27,27,27,42,30,37,14,28,30,39,8,8,7,8,8,0,0,7,8,12,12,12,8,8,8,12,12,18,0,0,0,8,0,18,0,0,0]} 1. d4 {[%emt 0:10:04]} b6 {[%emt 0:11:09]} 2. e4 {[%emt 0:00:19]} Bb7 {[%emt 0:00:17]} 3. Bd3 {[%emt 0:00:29]} e6 {[%emt 0:00:12]} 4. Nf3 {[%emt 0:01:13]} c5 {[%emt 0:03:23]} 5. c3 {[%emt 0:00:30]} Ne7 {[%emt 0:13:56]} 6. O-O {[%emt 0:02:08] B00: Queen's Fianchetto Defence, Nimzowitsch Defence.} Ng6 {[%emt 0:00:52]} 7. Re1 {[%emt 0:08:37]} Be7 {[%emt 0:03:55][%cal Bf8e7,Be7d6,Bd6c7,Bc7f4][%mdl 32]} 8. dxc5 $146 {[%emt 0:07:26] White is slightly better.} ({Predecessor:} 8. d5 O-O 9. c4 Na6 10. a3 d6 11. Nc3 Nc7 12. Rb1 Bf6 13. Bd2 Rb8 14. b4 {0-1 Estrada Nieto,J (2280)-Czopor,M (2427) Titled Tuesday intern op 16th Nov blitz 2021 (10)}) 8... bxc5 {[%emt 0:06:29]} 9. Na3 {[%emt 0:09:04][%cal Oh2h4]} Nc6 {[%emt 0:05:49]} 10. e5 {[%emt 0:04:33]} d5 {[%emt 0:18:40]} (10... Rb8 $11 {keeps the balance.}) 11. exd6 $16 {[%emt 0:00:37]} Bxd6 {[%emt 0:00:28]} 12. Nc4 {[%emt 0:01:44]} Bc7 {[%emt 0:01:23]} 13. Qe2 {[%emt 0:03:24]} (13. Be3 $16) 13... Nf4 {[%emt 0:07:18]} ({Black should try} 13... O-O $14) 14. Bxf4 {[%emt 0:00:48]} Bxf4 15. Be4 {[%emt 0:17:21]} Qc7 {[%emt 0:06:14]} 16. g3 {[%emt 0:07:35]} Bh6 {[%emt 0:02:06]} 17. Rad1 $36 {[%emt 0:01:31][%mdl 2048] [#] Black is under strong pressure.} O-O {[%emt 0:04:32]} 18. Nd6 {[%emt 0:00:40] White is much more active. A dynamic duo of knights.} Na5 {[%emt 0:04:59]} (18... Rab8 $16) 19. Nxb7 {[%emt 0:08:36]} Nxb7 {[%emt 0:00:07] Black is weak on the light squares} 20. Qa6 {[%emt 0:01:33]} Rab8 21. Qxa7 {[%emt 0:01:49]} (21. Ne5 $1 $18 {is the precise move to win.} Rbd8 22. Qxb7 Rxd1 23. Bxh7+ (23. Qxc7 Rxe1+ 24. Kg2 Rxe4 $18) (23. Rxd1 Qxe5 24. Bf3 Qf5 $16) 23... Kxh7 24. Qxc7 Rxe1+ 25. Kg2) 21... f5 {[%emt 0:06:16]} (21... g6 $16 22. b4 Bg7) 22. Bxb7 $18 Rxb7 {[%emt 0:00:07]} (22... Qxb7 $142 23. Qxb7 (23. Qxc5 Qxf3 24. b4 f4 $19) 23... Rxb7) 23. Qa6 {[%emt 0:01:28]} Rxb2 {[%emt 0:03:05]} 24. Qxe6+ {[%emt 0:00:20]} Qf7 {[%emt 0:01:10][%cal Of7e6] [#]} 25. Qxf7+ {[%emt 0:02:39]} (25. Qd6 $1 $18 {And now Ne5 would win.} g6 26. Ne5 (26. Qxc5 Ra8 $18) 26... Qxa2 27. Ra1 (27. Qxc5 Bg7 $18)) 25... Rxf7 $16 {[%emt 0:00:37]} 26. Ne5 {[%emt 0:07:22]} ({White should try} 26. Ra1) 26... Rf8 {[%emt 0:00:30][%cal Oh6d2]} 27. Nd7 {[%emt 0:02:13][%csl LRc5,LRf8]} Rc8 28. a4 {[%emt 0:01:04]} Bd2 {[%emt 0:03:47]} 29. Re5 {[%emt 0:00:31][%csl LRc5,LRf5]} Bxc3 {[%emt 0:00:54]} 30. Rxc5 {[%emt 0:00:41]} Rxc5 {[%emt 0:01:14]} 31. Nxc5 $11 {[%emt 0:00:01][%mdl 4096] Endgame KRB-KRN. White is a pawn up.} Kf7 {[%emt 0:01:31]} 32. Kg2 {[%emt 0:00:47]} Ra2 {[%emt 0:00:25]} 33. Kf3 {[%emt 0:04:02]} Bb4 {[%emt 0:01:10]} 34. Rd7+ {[%emt 0:00:49]} Ke8 {[%emt 0:01:05]} 35. Rd5 {[%emt 0:00:18]} g6 {[%emt 0:01:06] The position is equal.} 36. Nd3 {[%emt 0:02:01]} Rxa4 {[%emt 0:00:58]} 37. Rd4 {[%emt 0:01:03]} Ra3 $1 {[%emt 0:00:08]} 38. Rxb4 {[%emt 0:00:19]} Rxd3+ {[%emt 0:00:15] KR-KR} 39. Kf4 {[%emt 0:01:43]} Rd2 {[%emt 0:00:21]} 40. Kg5 {[%emt 0:00:23]} Rxf2 {[%emt 0:01:41]} 41. Rb8+ {[%emt 0:50:20]} Ke7 42. Rb7+ {[%emt 0:00:04]} Ke6 {[%emt 0:51:14]} 43. Rxh7 {[%emt 0:00:09]} f4 44. g4 {[%emt 0:00:00]} f3 {[%emt 0:00:00]} 45. Rh6 {[%emt 0:00:00]} Kf7 {[%emt 0:00:00]} 46. Kf4 {[%emt 0:00:00]} Rf1 {[%emt 0:00:00]} 47. Kg3 {[%emt 0:00:00]} f2 {[%emt 0:00:00]} 48. Kg2 {[%emt 0:00:00] Black escapes into a draw.   Weighted Error Value: White=0.19 (very precise) /Black=0.24 (precise)   Mistake:       	White=4     	Black=5      Inaccurate:     	White=3     	Black=2      OK:         	White=18    	Black=12     Best:        	White=3     	Black=6      Strong:       	---       	Black=1} 1/2-1/2

[Event "4NCL Div 2 2024-25"]
[Site "England"]
[Date "2025.02.15"]
[Round "5.22"]
[White "Jaufarally, Nadia"]
[Black "Longson, Sarah N"]
[Result "0-1"]
[Annotator "TA"]
[ECO "C50"]
[WhiteElo "1929"]
[BlackElo "1929"]
[PlyCount "152"]
[EventDate "2024.11.23"]
[EventType "team-tourn"]
[EventCountry "ENG"]
[SourceTitle "playchess.com"]
[Source "ChessBase"]
[SourceQuality "1"]
[TimeControl "40/6000+30:3000+30"]

{[%evp 10,152,14,16,9,8,30,20,24,12,50,0,0,3,7,0,32,0,127,16,20,8,11,0,4,0,84,-23,-27,-137,-75,-78,6,2,10,-100,-90,-101,-105,-102,-116,-111,-110,-172,-119,-119,-121,-112,-127,-228,-152,-161,-164,-212,-139,-226,-227,-220,-135,-181,0,-120,-106,-327,-301,-335,-276,-326,-214,-210,-187,-198,-210,-202,-208,-251,-222,-260,-265,-265,-232,-239,-198,-198,-188,-212,-181,-245,-260,-272,-265,-237,-188,-177,-164,-396,-218,-426,-324,-318,-225,-221,-210,-295,-307,-310,-285,-262,-272,-270,-214,-344,-335,-322,-331,-572,-572,-535,-508,-684,-676,-829,-807,-806,-766,-1314,-1192,-1240,-1334,-978,-1260,-29973,-29975,-4627,-1542,-1617,-1324,-1731,-1700,-1927,-1854,-29986,-29987,-29983,-29984]} 1. e4 {[%emt 0:10:03]} e5 {[%emt 0:10:03]} 2. Nf3 {[%emt 0:00:06]} Nc6 {[%emt 0:00:06]} 3. Bc4 {[%emt 0:00:08]} Nf6 {[%emt 0:00:13]} 4. d3 {[%emt 0:00:09]} Bc5 {[%emt 0:00:22]} 5. O-O {[%emt 0:00:43]} d6 {[%emt 0:01:38]} 6. a4 {[%emt 0:02:11]} a5 {[%emt 0:03:05] C50: Hungarian Defence and Giuoco Pianissimo.} 7. c3 {[%emt 0:06:06] 7.Be3 is more advanced technology.} Ba7 {[%emt 0:00:39]} 8. h3 {[%emt 0:08:00]} h6 {[%emt 0:01:18] The position is equal.} 9. Re1 {[%emt 0:07:57]} g5 10. d4 {[%emt 0:22:55]} (10. Be3 $14 {is superior.}) 10... g4 $146 {[%emt 0:05:34]} ({Predecessor:} 10... Qe7 11. Bb5 Bd7 12. d5 Nb8 13. Bf1 g4 14. hxg4 Nxg4 15. Re2 Na6 16. Na3 Nc5 {1-0 Nunez V,G (2226)-Makaraci,T (2233) Titled Tuesday intern op 03rd Sep Late blitz 2024 (8)}) 11. hxg4 {[%emt 0:06:39]} Nxg4 {[%emt 0:02:13]} 12. Na3 {[%emt 0:04:21]} exd4 {[%emt 0:11:39]} 13. cxd4 {[%emt 0:03:02]} Nce5 {[%emt 0:08:52]} 14. Be2 (14. Bf4 $16) 14... Nxf3+ $1 {[%emt 0:03:39]} 15. Bxf3 {[%emt 0:21:02]} Qh4 {[%emt 0:03:01]} 16. Bxg4 {[%emt 0:01:06]} Bxg4 {[%emt 0:00:38]} 17. Qd3 {[%emt 0:00:52] And now Nb5 would win. A sharp opening} O-O-O {[%emt 0:30:15]} (17... Rg8 $11 18. Nb5 Bb6) 18. Bd2 {[%emt 0:01:18]} ({White should play} 18. Nb5 $16 Bb6 19. Qc3) 18... Rhg8 {[%emt 0:01:11][%cal Oa7d4]} 19. Re3 {[%emt 0:03:12] [#]} (19. Nb5 $11 Bb6 20. b4) 19... Bd7 {[%emt 0:04:57]} ({Better is} 19... Rg5 $1 {[%cal Rg5h5]} 20. Nb5 Rh5 21. Nxa7+ Kb8) 20. Rc1 $17 {[%emt 0:03:26] [#]} Bc6 {[%emt 0:06:43]} (20... Bxa4 $6 21. Qc3 Bc6 22. d5 Bxe3 23. Qxe3 $11) (20... Rg5 $1 $17 {[%cal Rg5h5]} 21. Nb5 Rh5 (21... Bxb5 22. axb5 Rdg8 23. Rg3 $15) 22. Nxa7+ Kb8) 21. Nb5 $11 {[%emt 0:01:48]} Bb6 {[%emt 0:00:33]} 22. Nc3 {[%emt 0:01:46] [#]} (22. Nxc7 $1 $11 {remains equal.} Kxc7 (22... Bxc7 $2 23. d5 $18) 23. d5) 22... f5 $1 {[%emt 0:00:59] Black is much more active.} 23. Rh3 (23. Nd5 Bxd5) 23... fxe4 $40 {[%emt 0:03:35][%mdl 128] Black wants a kill.} 24. Rxh4 {[%emt 0:03:57]} exd3 {[%emt 0:00:03][%csl Od3] Black has a strong passed pawn} 25. g3 {[%emt 0:00:42]} h5 {[%emt 0:00:52]} 26. d5 {[%emt 0:01:03]} (26. Be3 $17) 26... Bd7 {[%emt 0:01:02]} (26... Rxg3+ 27. Kh1 Rf3 (27... Bxf2 28. dxc6 bxc6 29. Ne4 $11) 28. dxc6 $11) (26... Rdf8 $19 27. Bf4 (27. dxc6 $2 Rxf2 28. Bh6 d2 $19) 27... Be8) 27. Kg2 $17 {[%emt 0:00:46][%cal Of2f3]} Rdf8 {[%emt 0:05:22]} 28. f3 {[%cal Oc1d1]} Rf5 {[%emt 0:00:42]} 29. Ne4 {[%emt 0:01:04]} (29. Rd1 $17) 29... Kd8 {[%emt 0:02:13]} 30. Rc3 {[%emt 0:00:20]} Bxa4 {[%emt 0:00:53]} 31. Rxd3 {[%emt 0:00:27]} (31. Nf6 Rxf6 32. Rxa4) 31... Be8 {[%emt 0:01:38]} 32. Bc3 {[%emt 0:00:35]} (32. Rf4 $17 Rgf8 33. Rc3) 32... Bb5 $19 {[%emt 0:00:17]} 33. Rd2 {[%emt 0:00:33]} Kc8 {[%emt 0:00:31]} 34. Nf6 {[%emt 0:00:18]} (34. Bd4 $17 Bxd4 (34... Rxd5 35. Bxb6 Rxd2+ 36. Nxd2 $11) 35. Rxd4) 34... Rgg5 $2 {[%emt 0:00:55]} (34... Rg6 $19 35. Nxh5 Rg8) 35. Ne4 {[%emt 0:00:20]} (35. f4 $11 Rg6 36. Nxh5) 35... Rg6 $17 {[%emt 0:00:26]} 36. Rh2 $2 {[%emt 0:01:00] Loses the game.} (36. Bd4 $17) 36... Bc4 {[%emt 0:00:17] This pair of bishops is nice.} 37. Rh4 {[%emt 0:00:30][%cal Oe4d6]} Bxd5 {[%emt 0:00:25]} (37... Rxd5 38. Rxd5 Bxd5 39. Nf6 $14) 38. Re2 {[%emt 0:00:14]} Bxe4 {[%emt 0:00:47]} 39. Rhxe4 {[%emt 0:00:06]} Rf8 40. Ra4 {[%emt 0:01:06]} Rfg8 {[%emt 0:00:50]} 41. Be1 {[%emt 0:50:21]} Kd7 {[%emt 0:23:58] Repels Re7+} 42. Kh3 {[%emt 0:00:00]} Rg5 {[%emt 0:04:45]} 43. g4 {[%emt 0:00:00]} hxg4+ {[%emt 0:03:00]} 44. fxg4 {[%emt 0:00:00]} Rh8+ {[%emt 0:02:18]} 45. Kg3 {[%emt 0:00:00]} Rb5 {[%emt 0:01:20]} 46. Bc3 {[%emt 0:00:00]} Rg8 {[%emt 0:01:13]} 47. Bf6 {[%emt 0:00:00]} Bc5 {[%emt 0:03:07]} 48. Rf4 {[%emt 0:00:00]} (48. g5 $142) 48... d5 $19 {[%emt 0:01:43]} 49. Kh4 {[%emt 0:00:00]} Bd6 {[%emt 0:06:55]} 50. Rd4 {[%emt 0:00:00]} Re8 51. Rdd2 {[%emt 0:00:00]} Bf4 {[%emt 0:05:12]} 52. Rc2 {[%emt 0:00:00]} (52. Rxe8 {only move.} Kxe8 (52... Bxd2 53. Re7+ Kd6 54. Re2 $17) 53. Rf2) 52... Re4 {[%emt 0:00:16]} (52... Be3 $142 {and ...d4 should not be overlooked} 53. Rh2 d4) 53. Rg2 $2 {[%emt 0:03:54]} (53. Rxe4 dxe4 54. g5) 53... Rb6 {[%emt 0:00:45]} 54. Bg5 d4 {[%emt 0:00:47]} 55. Bxf4 {[%emt 0:01:17]} Rxf4 {[%emt 0:00:02][%mdl 4096] Endgame KRR-KRR. Black is two pawns up.} 56. Kg5 {[%emt 0:00:08]} (56. Rc5 $142) 56... Rf3 {[%emt 0:00:51]} 57. Rc5 {[%emt 0:01:33]} Rd6 {[%emt 0:00:47]} 58. Rxa5 {[%emt 0:00:11]} d3 {[%emt 0:01:31]} 59. Rd2 {[%emt 0:00:21]} Re3 {[%emt 0:00:46]} 60. Ra3 {[%emt 0:01:02]} (60. Kf4 $142 Re2 61. Rd1) 60... c5 {[%emt 0:00:36]} 61. Kf4 {[%emt 0:00:08]} Rh3 {[%emt 0:00:07]} 62. Rc3 $2 {[%emt 0:00:16]} (62. g5 {was worth a try.} Rd4+ 63. Ke5) 62... Rd4+ {[%emt 0:01:08]} 63. Kf5 {[%emt 0:00:49]} Rf3+ {[%emt 0:00:19]} 64. Kg5 {[%emt 0:01:21]} c4 {[%emt 0:00:15]} 65. b3 {[%emt 0:00:35]} b5 {[%emt 0:00:07]} 66. bxc4 {[%emt 0:00:47]} bxc4 {[%emt 0:00:10]} 67. Kh5 {[%emt 0:00:35]} Rh3+ {[%emt 0:00:13]} 68. Kg5 {[%emt 0:00:41]} Rg3 {[%emt 0:00:08][%cal Od7e6] ( -> ...Ke6!)} 69. Kf5 {[%emt 0:00:09]} Rgxg4 {[%emt 0:00:51] ( -> ...Rgf4+)} 70. Ke5 {[%emt 0:00:33]} Rge4+ {[%emt 0:00:15]} 71. Kf5 {[%emt 0:00:23]} Kd6 {[%emt 0:01:24]} (71... Rf4+ $142 72. Kg5 Ke6) 72. Ra3 {[%emt 0:00:56]} Re5+ {[%emt 0:00:43]} 73. Kf6 {[%emt 0:00:06]} Rf4+ {[%emt 0:00:42]} 74. Kg6 {[%emt 0:00:09]} Re2 {[%emt 0:00:38]} 75. Rd1 {[%emt 0:00:31]} Rg2+ {[%emt 0:00:20]} 76. Kh5 {[%emt 0:00:03]} Rf8 {[%emt 0:00:21] Weighted Error Value: White=0.45/Black=0.37  Loses game:     	White=1     	---        Missed win:     	---       	Black=1      Mistake:       	White=17    	Black=6      Inaccurate:     	White=2     	Black=6      OK:         	White=17    	Black=21     Best:        	White=1     	Black=2      Strong:       	---       	Black=1} 0-1